[Event "Czech Open GM 2020"]
[Site "Pardubice"]
[Date "2020.09.28"]
[Round "9.14"]
[White "Degenhard, Simon"]
[Black "Vokac, Marek"]
[Result "0-1"]
[ECO "B06"]
[WhiteElo "2271"]
[BlackElo "2365"]
[Annotator "ChessBase"]
[PlyCount "136"]
[EventDate "2020.09.21"]
[EventCountry "CZE"]
[SourceTitle "playchess.com"]
[Source "ChessBase"]
[SourceQuality "1"]
[TimeControl "40/5400+30:1800+30"]

1. e4 {[%emt 0:00:00]} g6 {[%emt 0:00:00]} 2. d4 {[%emt 0:00:00]} Bg7 {[%emt 0:00:00]} 3. Nc3 {[%emt 0:00:00]} c6 {[%emt 0:00:40]} 4. Nf3 {[%emt 0:00:04]} d6 {[%emt 0:00:16]} 5. Be3 {[%emt 0:00:58]} b5 {[%emt 0:00:35]} 6. Qd2 {[%emt 0:03:42]} Nd7 {[%emt 0:05:24]} 7. Bd3 {[%emt 0:02:43]} Bb7 {[%emt 0:08:20]} 8. O-O {[%emt 0:00:33]} a6 {[%emt 0:05:38]} 9. Rfd1 {[%emt 0:07:48]} Qc7 {[%emt 0:04:32]} 10. h3 {[%emt 0:08:06]} c5 {[%emt 0:04:28]} 11. a3 {[%emt 0:05:43]} cxd4 {[%emt 0:00:58]} 12. Nxd4 {[%emt 0:02:25]} Ngf6 {[%emt 0:00:10]} 13. Bh6 {[%emt 0:06:31]} O-O {[%emt 0:03:30]} 14. Bxg7 {[%emt 0:04:05]} Kxg7 {[%emt 0:02:07]} 15. Qe2 {[%emt 0:04:56]} Nc5 {[%emt 0:05:39]} 16. Re1 {[%emt 0:03:03]} e5 {[%emt 0:00:35]} 17. Nb3 {[%emt 0:03:11]} Ne6 {[%emt 0:07:22]} 18. Qe3 {[%emt 0:03:35]} Rad8 {[%emt 0:01:55]} 19. Rad1 {[%emt 0:01:45]} d5 {[%emt 0:03:37]} 20. exd5 {[%emt 0:01:00]} Nxd5 {[%emt 0:00:03]} 21. Qxe5+ {[%emt 0:01:51]} Qxe5 {[%emt 0:09:30]} 22. Rxe5 {[%emt 0:00:10]} Nxc3 {[%emt 0:00:51]} 23. bxc3 {[%emt 0:00:08]} Nf4 {[%emt 0:00:41]} 24. f3 {[%emt 0:01:29]} Rd5 {[%emt 0:12:49]} 25. Re7 {[%emt 0:03:22]} Ba8 {[%emt 0:01:14]} 26. Ra7 {[%emt 0:02:13]} Rg5 {[%emt 0:05:34]} 27. Bf1 {[%emt 0:03:12]} Bxf3 {[%emt 0:01:29]} 28. Rd2 {[%emt 0:00:10]} Bd5 {[%emt 0:01:17]} 29. Kh2 {[%emt 0:01:06]} Rc8 {[%emt 0:03:56]} 30. Rf2 {[%emt 0:07:19]} Nh5 {[%emt 0:00:37]} 31. Rxa6 {[%emt 0:08:04]} Ng3 {[%emt 0:01:14]} 32. Bxb5 {[%emt 0:07:29]} Ne4 {[%emt 0:00:27]} 33. Rf4 {[%emt 0:00:52]} Nc5 {[%emt 0:02:04]} 34. Rd6 {[%emt 0:04:15]} Rxg2+ {[%emt 0:00:52]} 35. Kh1 {[%emt 0:00:05]} Rg5+ {[%emt 0:00:34]} 36. Kh2 {[%emt 0:02:31]} Nxb3 {[%emt 0:00:42]} 37. cxb3 {[%emt 0:00:17]} Rxc3 {[%emt 0:01:56]} 38. Rf2 Bxb3 {[%emt 0:02:50]} 39. a4 {[%emt 0:00:05]} Be6 {[%emt 0:00:00]} 40. Rd3 {[%emt 0:01:56]} Rxd3 {[%emt 0:00:04]} 41. Bxd3 {[%emt 0:30:36]} Rc5 {[%emt 0:30:27]} 42. Rf4 {[%emt 0:00:00]} Rc3 {[%emt 0:00:00]} 43. Rd4 {[%emt 0:00:00]} Ra3 {[%emt 0:00:00]} 44. h4 {[%emt 0:00:00]} Kf6 {[%emt 0:00:00]} 45. Bb5 {[%emt 0:00:00]} Ke5 {[%emt 0:00:00]} 46. Rd3 {[%emt 0:00:00]} Ra2+ {[%emt 0:00:00]} 47. Kg3 {[%emt 0:00:00]} Bd5 {[%emt 0:00:00]} 48. Be8 {[%emt 0:00:00]} Ke4 {[%emt 0:00:00]} 49. Rd1 {[%emt 0:00:00]} Ra3+ {[%emt 0:14:22]} 50. Kg4 {[%emt 0:08:20]} f6 {[%emt 0:01:48]} 51. Re1+ {[%emt 0:00:00]} Kd4 {[%emt 0:03:10]} 52. Rf1 {[%emt 0:02:53]} Ke5 {[%emt 0:01:56]} 53. Re1+ {[%emt 0:04:12]} Kd6 {[%emt 0:00:00]} 54. Rf1 {[%emt 0:00:14]} Ke7 {[%emt 0:00:50]} 55. Bb5 {[%emt 0:03:14]} h5+ {[%emt 0:00:00]} 56. Kf4 {[%emt 0:00:00]} Rh3 {[%emt 0:00:00]} 57. a5 {[%emt 0:00:00]} Rxh4+ {[%emt 0:00:00]} 58. Ke3 {[%emt 0:00:00]} Re4+ {[%emt 0:00:00]} 59. Kd3 {[%emt 0:00:00]} Rb4 {[%emt 0:00:00]} 60. Re1+ {[%emt 0:00:00]} Kd6 {[%emt 0:00:00]} 61. Be8 {[%emt 0:00:00]} h4 {[%emt 0:00:00]} 62. Bxg6 {[%emt 0:00:00]} h3 {[%emt 0:00:00]} 63. Kc3 {[%emt 0:00:00]} Rc4+ {[%emt 0:00:00]} 64. Kd3 {[%emt 0:00:00]} Ra4 {[%emt 0:00:00]} 65. a6 {[%emt 0:00:00]} h2 {[%emt 0:00:00]} 66. Be8 {[%emt 0:00:00]} Rxa6 {[%emt 0:00:00]} 67. Bb5 {[%emt 0:00:00]} Ra3+ {[%emt 0:00:00]} 68. Kd4 {[%emt 0:00:00]} h1=Q {[%emt 0:00:00]} 0-1

[Event "Czech Open GM 2020"]
[Site "Pardubice"]
[Date "2020.09.28"]
[Round "9.15"]
[White "Bulockin, Martin"]
[Black "Sernecki, Franciszek"]
[Result "1-0"]
[ECO "A46"]
[WhiteElo "2297"]
[BlackElo "2248"]
[Annotator "ChessBase"]
[PlyCount "87"]
[EventDate "2020.09.21"]
[EventCountry "CZE"]
[SourceTitle "playchess.com"]
[Source "ChessBase"]
[SourceQuality "1"]
[TimeControl "40/5400+30:1800+30"]

1. d4 {[%emt 0:02:37]} Nf6 {[%emt 0:00:00]} 2. Nf3 {[%emt 0:00:50]} e6 {[%emt 0:00:00]} 3. Bf4 {[%emt 0:00:25]} c5 {[%emt 0:00:10]} 4. e3 {[%emt 0:03:20]} Qb6 {[%emt 0:00:43]} 5. Nc3 {[%emt 0:08:54]} a6 {[%emt 0:06:21]} 6. Rb1 {[%emt 0:05:14]} Nc6 {[%emt 0:06:10]} 7. a3 {[%emt 0:01:59]} d5 {[%emt 0:04:26]} 8. Be2 {[%emt 0:03:41]} Be7 {[%emt 0:11:21]} 9. h3 {[%emt 0:01:29]} O-O {[%emt 0:07:03]} 10. O-O {[%emt 0:01:22]} Bd7 {[%emt 0:04:40]} 11. Qd2 {[%emt 0:06:01]} Rac8 {[%emt 0:03:47]} 12. Bg5 {[%emt 0:11:05]} Rfd8 {[%emt 0:05:41]} 13. Na4 {[%emt 0:02:59]} Qa7 {[%emt 0:01:16]} 14. Bxf6 {[%emt 0:01:56]} gxf6 {[%emt 0:00:44]} 15. Nxc5 {[%emt 0:01:33]} Bxc5 {[%emt 0:01:49]} 16. dxc5 {[%emt 0:00:01]} Qxc5 {[%emt 0:00:26]} 17. Rfd1 {[%emt 0:02:22]} Ne5 {[%emt 0:06:08]} 18. Nd4 {[%emt 0:03:27]} Nc4 {[%emt 0:07:06]} 19. Bxc4 {[%emt 0:05:03]} Qxc4 {[%emt 0:01:00]} 20. c3 {[%emt 0:00:44]} e5 {[%emt 0:02:01]} 21. Ne2 {[%emt 0:00:27]} Bf5 {[%emt 0:05:13]} 22. Rbc1 {[%emt 0:00:09]} Bg6 {[%emt 0:08:27]} 23. Ng3 {[%emt 0:02:24]} Rc6 {[%emt 0:01:11]} 24. f4 {[%emt 0:02:13]} h5 {[%emt 0:04:53]} 25. h4 {[%emt 0:02:14]} Rcd6 {[%emt 0:02:46]} 26. Qf2 {[%emt 0:02:13]} Be4 {[%emt 0:01:38]} 27. Nxh5 {[%emt 0:00:58]} Kh8 {[%emt 0:00:53]} 28. Rd2 {[%emt 0:04:13]} Rg8 {[%emt 0:01:23]} 29. Ng3 {[%emt 0:01:47]} Rg4 {[%emt 0:01:59]} 30. b3 {[%emt 0:01:21]} Qc5 {[%emt 0:00:25]} 31. Rcd1 {[%emt 0:07:29]} Bh7 {[%emt 0:01:07]} 32. Ne2 {[%emt 0:01:25]} Be4 {[%emt 0:01:01]} 33. Ng3 {[%emt 0:00:23]} Bh7 {[%emt 0:00:04]} 34. Ne2 {[%emt 0:00:04]} Be4 {[%emt 0:00:36]} 35. g3 {[%emt 0:01:51]} Qxa3 {[%emt 0:01:31]} 36. fxe5 {[%emt 0:00:31]} fxe5 {[%emt 0:00:17]} 37. Qxf7 {[%emt 0:00:25]} Rdg6 {[%emt 0:00:53]} 38. Qe8+ {[%emt 0:01:23]} Kh7 {[%emt 0:00:07]} 39. Rf1 {[%emt 0:01:05]} Qc5 {[%emt 0:01:47]} 40. Rf7+ {[%emt 0:02:01]} Rg7 {[%emt 0:00:01]} 41. Kf2 {[%emt 0:32:56]} Qd6 {[%emt 0:32:48]} 42. Rf8 {[%emt 0:02:26]} Kh6 {[%emt 0:00:00]} 43. c4 {[%emt 0:00:00]} Qb4 {[%emt 0:00:00]} 44. Rxd5 {[%emt 0:00:00]} 1-0

[Event "Czech Open GM 2020"]
[Site "Pardubice"]
[Date "2020.09.28"]
[Round "9.16"]
[White "Krasteva, Beloslava"]
[Black "Dixa, Oskar"]
[Result "1-0"]
[ECO "E49"]
[WhiteElo "2296"]
[BlackElo "1972"]
[Annotator "ChessBase"]
[PlyCount "79"]
[EventDate "2020.09.21"]
[EventCountry "CZE"]
[SourceTitle "playchess.com"]
[Source "ChessBase"]
[SourceQuality "1"]
[TimeControl "40/5400+30:1800+30"]

1. d4 {[%emt 0:00:00]} Nf6 {[%emt 0:00:00]} 2. c4 {[%emt 0:00:03]} e6 {[%emt 0:00:05]} 3. Nc3 {[%emt 0:00:16]} Bb4 {[%emt 0:00:49]} 4. e3 {[%emt 0:00:25]} O-O {[%emt 0:00:15]} 5. Bd3 {[%emt 0:00:30]} d5 {[%emt 0:00:16]} 6. a3 {[%emt 0:00:46]} Bxc3+ {[%emt 0:02:58]} 7. bxc3 {[%emt 0:00:10]} c5 {[%emt 0:00:58]} 8. cxd5 {[%emt 0:01:14]} exd5 {[%emt 0:00:56]} 9. Ne2 {[%emt 0:00:43]} Nc6 {[%emt 0:03:36]} 10. O-O {[%emt 0:01:22]} Re8 {[%emt 0:05:17]} 11. f3 {[%emt 0:01:59]} cxd4 {[%emt 0:00:55]} 12. cxd4 {[%emt 0:01:12]} a6 {[%emt 0:07:32]} 13. Ng3 {[%emt 0:03:48]} b5 {[%emt 0:00:56]} 14. Ra2 {[%emt 0:05:47]} Bb7 {[%emt 0:02:30]} 15. Re2 {[%emt 0:09:07]} Qb6 {[%emt 0:03:13]} 16. Kh1 {[%emt 0:07:50]} Rad8 {[%emt 0:02:58]} 17. Nf5 {[%emt 0:02:50]} g6 {[%emt 0:06:54]} 18. Ng3 {[%emt 0:00:42]} b4 {[%emt 0:00:51]} 19. Qa4 {[%emt 0:10:26]} a5 {[%emt 0:04:58]} 20. Bd2 {[%emt 0:02:45]} Rb8 {[%emt 0:04:29]} 21. Rc1 {[%emt 0:05:15]} Rec8 {[%emt 0:03:31]} 22. Rc5 {[%emt 0:08:33]} bxa3 {[%emt 0:05:24]} 23. Qxa3 {[%emt 0:07:01]} Nb4 {[%emt 0:02:47]} 24. Rxa5 {[%emt 0:02:56]} Nxd3 {[%emt 0:09:33]} 25. Qxd3 {[%emt 0:00:08]} Rc1+ {[%emt 0:00:15]} 26. Re1 {[%emt 0:02:58]} Rxe1+ {[%emt 0:00:43]} 27. Bxe1 {[%emt 0:00:01]} Bc6 {[%emt 0:00:41]} 28. Ra1 {[%emt 0:02:11]} Bb5 {[%emt 0:02:30]} 29. Qa3 {[%emt 0:01:44]} h5 {[%emt 0:01:16]} 30. h4 {[%emt 0:03:09]} Bc4 {[%emt 0:00:47]} 31. Kg1 {[%emt 0:01:03]} Qd8 {[%emt 0:01:38]} 32. Bf2 {[%emt 0:01:15]} Rb3 {[%emt 0:01:12]} 33. Qc5 {[%emt 0:03:59]} Nd7 {[%emt 0:00:57]} 34. Qd6 {[%emt 0:00:38]} Rb6 {[%emt 0:01:26]} 35. Qf4 {[%emt 0:00:32]} Nf8 {[%emt 0:00:09]} 36. Ra7 {[%emt 0:01:35]} Rb1+ {[%emt 0:01:37]} 37. Kh2 {[%emt 0:00:03]} f5 {[%emt 0:00:44]} 38. Nxf5 {[%emt 0:05:06]} Qb8 {[%emt 0:02:31]} 39. Nh6+ {[%emt 0:00:49]} Kh8 {[%emt 0:00:07]} 40. Rc7 {[%emt 0:01:23]} 1-0

[Event "Czech Open GM 2020"]
[Site "Pardubice"]
[Date "2020.09.28"]
[Round "9.17"]
[White "Lizak, Peter"]
[Black "Siekanski, Janusz"]
[Result "1/2-1/2"]
[ECO "D32"]
[WhiteElo "2457"]
[BlackElo "2184"]
[Annotator "ChessBase"]
[PlyCount "98"]
[EventDate "2020.09.21"]
[EventCountry "CZE"]
[SourceTitle "playchess.com"]
[Source "ChessBase"]
[SourceQuality "1"]
[TimeControl "40/5400+30:1800+30"]

1. d4 d5 2. c4 e6 3. Nc3 c5 4. cxd5 exd5 {[%emt 40:48:46]} 5. Nf3 Nc6 {[%emt 0:00:15]} 6. dxc5 d4 {[%emt 0:00:42]} 7. Na4 Bxc5 {[%emt 0:00:20]} 8. Nxc5 Qa5+ {[%emt 0:00:10]} 9. Qd2 Qxc5 {[%emt 0:00:22]} 10. e3 dxe3 {[%emt 0:02:20]} 11. Qxe3+ Qxe3+ {[%emt 0:00:18]} 12. Bxe3 {[%emt 0:00:15]} Be6 {[%emt 0:05:45]} 13. Bb5 {[%emt 0:00:11]} Nge7 {[%emt 0:01:13]} 14. Nd4 {[%emt 0:00:21]} Bd5 {[%emt 0:01:47]} 15. O-O {[%emt 0:00:23]} O-O {[%emt 0:06:47]} 16. Rfd1 {[%emt 0:00:57]} Rfd8 {[%emt 0:03:44]} 17. b3 {[%emt 0:04:58]} Nxd4 {[%emt 0:19:05]} 18. Bxd4 {[%emt 0:01:02]} Bc6 {[%emt 0:03:13]} 19. Bf1 {[%emt 0:04:09]} Nd5 {[%emt 0:05:38]} 20. Rd2 {[%emt 0:08:17]} Nf4 {[%emt 0:15:13]} 21. Rad1 {[%emt 0:10:30]} Ne6 {[%emt 0:12:04]} 22. Be3 {[%emt 0:00:20]} a6 {[%emt 0:02:55]} 23. Bd3 {[%emt 0:28:09]} g6 {[%emt 0:02:33]} 24. f4 {[%emt 0:02:36]} Rd7 {[%emt 0:03:45]} 25. Be2 {[%emt 0:21:13]} Rad8 {[%emt 0:01:33]} 26. Rxd7 {[%emt 0:02:26]} Rxd7 {[%emt 0:00:01]} 27. Rxd7 {[%emt 0:01:04]} Bxd7 28. g4 {[%emt 0:01:55]} f5 {[%emt 0:02:04]} 29. h3 {[%emt 0:01:41]} Kf7 {[%emt 0:00:55]} 30. Kf2 {[%emt 0:00:37]} Nc7 {[%emt 0:02:49]} 31. Kg3 {[%emt 0:02:09]} Bb5 {[%emt 0:01:39]} 32. Bd1 {[%emt 0:00:43]} Bd3 {[%emt 0:00:17]} 33. Bd4 {[%emt 0:03:40]} Ne6 {[%emt 0:01:01]} 34. Bb6 {[%emt 0:00:33]} Be4 {[%emt 0:00:42]} 35. Be2 {[%emt 0:01:02]} Ke7 {[%emt 0:01:11]} 36. gxf5 {[%emt 0:03:01]} gxf5 {[%emt 0:00:47]} 37. Bc4 {[%emt 0:00:44]} Kf6 {[%emt 0:01:14]} 38. Be3 {[%emt 0:00:44]} b5 {[%emt 0:02:07]} 39. Be2 {[%emt 0:00:27]} Bc6 {[%emt 0:03:10]} 40. Kh4 {[%emt 0:01:48]} Kg6 {[%emt 0:00:20]} 41. Kg3 {[%emt 0:03:34]} Kf6 {[%emt 0:01:51]} 42. Kf2 {[%emt 0:00:31]} Nc7 {[%emt 0:02:29]} 43. Bd4+ {[%emt 0:01:22]} Ke6 {[%emt 0:00:20]} 44. Be5 {[%emt 0:00:17]} Nd5 {[%emt 0:00:48]} 45. a3 {[%emt 0:02:16]} Ne7 {[%emt 0:01:46]} 46. Ke3 {[%emt 0:01:41]} Bd5 {[%emt 0:01:29]} 47. a4 {[%emt 0:09:12]} Bxb3 {[%emt 0:01:00]} 48. axb5 {[%emt 0:00:10]} axb5 {[%emt 0:00:14]} 49. Bxb5 {[%emt 0:00:08]} Bd5 {[%emt 0:00:57]} 1/2-1/2

[Event "Czech Open GM 2020"]
[Site "Pardubice"]
[Date "2020.09.28"]
[Round "9.18"]
[White "Koziak, Vitali"]
[Black "Trybus, Daniel"]
[Result "1-0"]
[ECO "E62"]
[WhiteElo "2434"]
[BlackElo "1997"]
[Annotator "ChessBase"]
[PlyCount "57"]
[EventDate "2020.09.21"]
[EventCountry "CZE"]
[SourceTitle "playchess.com"]
[Source "ChessBase"]
[SourceQuality "1"]
[TimeControl "40/5400+30:1800+30"]

1. Nf3 {[%emt 0:07:00]} Nf6 {[%emt 0:00:00]} 2. d4 {[%emt 0:01:11]} g6 {[%emt 0:00:00]} 3. c4 {[%emt 0:00:57]} Bg7 {[%emt 0:00:03]} 4. g3 {[%emt 0:02:51]} O-O {[%emt 0:00:17]} 5. Bg2 {[%emt 0:00:04]} d6 {[%emt 0:00:06]} 6. O-O {[%emt 0:00:06]} c6 {[%emt 0:00:05]} 7. Nc3 {[%emt 0:03:25]} Qa5 {[%emt 0:00:06]} 8. e4 {[%emt 0:01:23]} e5 {[%emt 0:00:05]} 9. d5 {[%emt 0:01:20]} cxd5 {[%emt 0:00:16]} 10. cxd5 {[%emt 0:00:06]} b5 {[%emt 0:00:22]} 11. a4 {[%emt 0:18:18]} b4 {[%emt 0:07:13]} 12. Nb5 {[%emt 0:00:06]} Qd8 {[%emt 0:09:14]} 13. Be3 {[%emt 0:14:02]} a6 {[%emt 0:06:38]} 14. Na7 {[%emt 0:01:00]} Bd7 {[%emt 0:05:47]} 15. Rc1 {[%emt 0:08:11]} Ng4 {[%emt 0:05:05]} 16. Bg5 {[%emt 0:10:57]} Qe8 {[%emt 0:10:51]} 17. Rc7 {[%emt 0:16:55]} Bxa4 {[%emt 0:10:31]} 18. Qa1 {[%emt 0:00:02]} Bf6 {[%emt 0:06:27]} 19. Bd2 {[%emt 0:04:49]} a5 {[%emt 0:03:17]} 20. Rfc1 {[%emt 0:02:01]} Bd7 {[%emt 0:03:49]} 21. h3 {[%emt 0:01:40]} Nxf2 22. Kxf2 {[%emt 0:01:06]} Na6 {[%emt 0:02:19]} 23. Qxa5 {[%emt 0:02:10]} Nxc7 {[%emt 0:00:03]} 24. Qxc7 {[%emt 0:01:24]} Bd8 {[%emt 0:00:17]} 25. Qb7 {[%emt 0:01:33]} f5 {[%emt 0:01:40]} 26. Kg1 {[%emt 0:00:00]} fxe4 27. Ng5 {[%emt 0:04:49]} h6 {[%emt 0:15:23]} 28. Nxe4 {[%emt 0:00:00]} Qf7 29. Bxh6 {[%emt 0:02:15]} 1-0

[Event "Czech Open GM 2020"]
[Site "Pardubice"]
[Date "2020.09.28"]
[Round "9.19"]
[White "Iolis, Oleg"]
[Black "Seger, Ruediger"]
[Result "0-1"]
[ECO "B12"]
[WhiteElo "2173"]
[BlackElo "2312"]
[Annotator "ChessBase"]
[PlyCount "100"]
[EventDate "2020.09.21"]
[EventCountry "CZE"]
[SourceTitle "playchess.com"]
[Source "ChessBase"]
[SourceQuality "1"]
[TimeControl "40/5400+30:1800+30"]

1. e4 {[%emt 0:46:33]} c6 {[%emt 0:03:32]} 2. d4 {[%emt 0:00:07]} d5 {[%emt 0:00:04]} 3. e5 {[%emt 0:00:06]} Bf5 {[%emt 0:02:42]} 4. Bd3 {[%emt 0:00:09]} Bxd3 {[%emt 0:00:20]} 5. Qxd3 {[%emt 0:00:05]} e6 {[%emt 0:00:13]} 6. Ne2 {[%emt 0:00:04]} Nd7 {[%emt 0:01:49]} 7. O-O {[%emt 0:00:09]} c5 {[%emt 0:00:10]} 8. c3 {[%emt 0:00:05]} Ne7 {[%emt 0:00:09]} 9. Nd2 {[%emt 0:00:08]} Nc6 {[%emt 0:00:16]} 10. Nf3 {[%emt 0:00:08]} Be7 {[%emt 0:00:26]} 11. a3 {[%emt 0:02:31]} O-O {[%emt 0:01:08]} 12. b4 {[%emt 0:00:13]} cxd4 {[%emt 0:00:39]} 13. cxd4 {[%emt 0:00:04]} a6 {[%emt 0:06:18]} 14. Nf4 {[%emt 0:04:38]} Rc8 {[%emt 0:06:51]} 15. g3 {[%emt 0:01:54]} Qb6 {[%emt 0:06:42]} 16. h4 {[%emt 0:02:27]} Qb5 {[%emt 0:00:26]} 17. Qe3 {[%emt 0:11:41]} a5 {[%emt 0:04:37]} 18. bxa5 {[%emt 0:02:11]} Nxa5 {[%emt 0:00:06]} 19. a4 {[%emt 0:00:38]} Qb3 {[%emt 0:00:42]} 20. Qxb3 {[%emt 0:02:36]} Nxb3 {[%emt 0:00:31]} 21. Rb1 {[%emt 0:00:06]} Nxc1 {[%emt 0:09:35]} 22. Rfxc1 {[%emt 0:00:06]} b6 {[%emt 0:00:09]} 23. Ne2 {[%emt 0:03:34]} f6 {[%emt 0:03:45]} 24. Rxc8 {[%emt 0:04:09]} Rxc8 {[%emt 0:00:05]} 25. Rc1 {[%emt 0:00:04]} Rxc1+ {[%emt 0:02:55]} 26. Nxc1 {[%emt 0:00:04]} Nb8 {[%emt 0:01:19]} 27. Kf1 {[%emt 0:00:48]} Nc6 {[%emt 0:00:18]} 28. Nd3 {[%emt 0:01:04]} Bd8 {[%emt 0:07:29]} 29. Ke2 {[%emt 0:00:53]} Kf7 {[%emt 0:00:24]} 30. h5 {[%emt 0:00:47]} Bc7 {[%emt 0:04:29]} 31. Ke3 {[%emt 0:10:11]} Na7 {[%emt 0:01:36]} 32. g4 {[%emt 0:02:00]} b5 {[%emt 0:03:08]} 33. axb5 {[%emt 0:00:06]} Nxb5 {[%emt 0:00:03]} 34. Nd2 {[%emt 0:05:09]} fxe5 {[%emt 0:08:32]} 35. Nxe5+ {[%emt 0:00:45]} Kf6 {[%emt 0:01:43]} 36. f4 {[%emt 0:00:16]} Nd6 {[%emt 0:04:18]} 37. Ndf3 {[%emt 0:02:13]} Ne4 {[%emt 0:02:01]} 38. Nh4 {[%emt 0:12:24]} Bd6 {[%emt 0:03:10]} 39. g5+ {[%emt 0:10:30]} Ke7 {[%emt 0:00:13]} 40. Ng4 {[%emt 0:01:35]} Ba3 {[%emt 0:02:34]} 41. h6 {[%emt 0:01:17]} gxh6 {[%emt 0:01:04]} 42. Nxh6 {[%emt 0:04:50]} Bc1+ {[%emt 0:01:42]} 43. Kf3 {[%emt 0:00:10]} Nxg5+ {[%emt 0:01:37]} 44. Kg4 {[%emt 0:03:10]} Ne4 {[%emt 0:01:30]} 45. Nf3 {[%emt 0:00:47]} Nf2+ {[%emt 0:01:28]} 46. Kh5 {[%emt 0:01:16]} Bxf4 {[%emt 0:01:10]} 47. Ng5 {[%emt 0:00:22]} Bxg5 {[%emt 0:06:43]} 48. Kxg5 {[%emt 0:00:04]} Ne4+ {[%emt 0:00:10]} 49. Kf4 {[%emt 0:00:06]} Nd6 {[%emt 0:01:21]} 50. Ng4 {[%emt 0:00:31]} Nf7 {[%emt 0:00:14]} 0-1

[Event "Czech Open GM 2020"]
[Site "Pardubice"]
[Date "2020.09.28"]
[Round "9.20"]
[White "Rabatin, Jakub"]
[Black "Seitz, Patrick"]
[Result "1-0"]
[ECO "B07"]
[WhiteElo "2291"]
[BlackElo "2186"]
[Annotator "ChessBase"]
[PlyCount "79"]
[EventDate "2020.09.21"]
[EventCountry "CZE"]
[SourceTitle "playchess.com"]
[Source "ChessBase"]
[SourceQuality "1"]
[TimeControl "40/5400+30:1800+30"]

1. d4 {[%emt 0:00:00]} Nf6 {[%emt 0:16:05]} 2. Bf4 {[%emt 0:00:00]} g6 {[%emt 0:00:22]} 3. Nc3 {[%emt 0:00:04]} d6 {[%emt 0:01:42]} 4. e4 {[%emt 0:00:11]} Bg7 {[%emt 0:01:14]} 5. Qd2 {[%emt 0:00:17]} Nc6 {[%emt 0:03:19]} 6. O-O-O {[%emt 0:01:02]} Nh5 {[%emt 0:04:30]} 7. Be3 {[%emt 0:06:22]} e5 {[%emt 0:02:34]} 8. d5 {[%emt 0:01:57]} Ne7 {[%emt 0:03:53]} 9. Bb5+ {[%emt 0:00:12]} Bd7 {[%emt 0:00:53]} 10. Bxd7+ {[%emt 0:00:10]} Qxd7 {[%emt 0:00:06]} 11. Nge2 {[%emt 0:07:00]} b5 {[%emt 0:05:33]} 12. g4 {[%emt 0:04:37]} Nf6 {[%emt 0:10:52]} 13. g5 {[%emt 0:04:14]} Ng4 {[%emt 0:02:39]} 14. Rdg1 {[%emt 0:25:00]} Nxe3 {[%emt 0:02:28]} 15. Qxe3 {[%emt 0:00:32]} b4 {[%emt 0:00:54]} 16. Nd1 {[%emt 0:05:06]} h5 {[%emt 0:02:27]} 17. gxh6 {[%emt 0:14:42]} Bxh6 {[%emt 0:04:58]} 18. f4 {[%emt 0:00:04]} exf4 {[%emt 0:05:01]} 19. Nxf4 {[%emt 0:00:23]} a5 {[%emt 0:01:26]} 20. Kb1 {[%emt 0:00:50]} a4 {[%emt 0:01:58]} 21. Nf2 {[%emt 0:01:52]} b3 {[%emt 0:04:01]} 22. Qc3 {[%emt 0:10:42]} bxa2+ {[%emt 0:00:54]} 23. Kxa2 {[%emt 0:00:45]} Rh7 {[%emt 0:00:07]} 24. Ng4 {[%emt 0:01:22]} Bg7 {[%emt 0:00:09]} 25. Qxg7 {[%emt 0:01:46]} Rxg7 {[%emt 0:00:05]} 26. Nf6+ {[%emt 0:00:06]} Kd8 {[%emt 0:00:33]} 27. Nxd7 {[%emt 0:00:05]} Kxd7 {[%emt 0:00:04]} 28. Nh5 {[%emt 0:00:06]} Rag8 {[%emt 0:05:27]} 29. Nxg7 {[%emt 0:00:08]} Rxg7 {[%emt 0:00:04]} 30. h4 {[%emt 0:00:07]} Rh7 {[%emt 0:00:04]} 31. Ka3 {[%emt 0:03:45]} Rh8 {[%emt 0:01:53]} 32. Kxa4 {[%emt 0:00:50]} c6 {[%emt 0:01:11]} 33. c4 {[%emt 0:00:43]} cxd5 {[%emt 0:01:46]} 34. exd5 {[%emt 0:03:27]} Nf5 {[%emt 0:00:46]} 35. Rg4 {[%emt 0:02:59]} Rb8 {[%emt 0:03:02]} 36. b4 {[%emt 0:02:29]} Ne3 {[%emt 0:00:06]} 37. Rf4 {[%emt 0:00:22]} f5 {[%emt 0:00:40]} 38. Kb3 {[%emt 0:00:12]} Rh8 {[%emt 0:01:04]} 39. Rg1 {[%emt 0:01:53]} Ng4 {[%emt 0:02:27]} 40. Rfxg4 {[%emt 0:00:12]} 1-0